[Event "Arsen Yeghiazaryan Memorial 2022"]
[Site "Yerevan"]
[Date "2022.07.01"]
[Round "1.5"]
[White "Agasarov, Benik"]
[Black "Alaverdyan, Gevorg"]
[Result "0-1"]
[ECO "B01"]
[WhiteElo "2225"]
[BlackElo "2336"]
[Annotator "TA"]
[PlyCount "90"]
[EventDate "2022.06.30"]
[EventType "tourn"]
[EventCountry "ARM"]
[SourceTitle "playchess.com"]
[Source "ChessBase"]
[SourceQuality "1"]
[TimeControl "40/5400+30:1800+30"]

{[%evp 10,90,40,50,60,32,35,41,38,37,47,34,41,27,25,14,30,-75,-93,-75,41,29,29,18,35,0,0,0,0,0,0,-8,18,-57,-54,-112,-66,-67,-68,-70,-61,-79,-58,-73,-51,-237,-89,-151,-89,-98,-70,-66,-82,-73,-52,-61,-35,-43,-56,-348,-333,-460,-456,-454,-452,-444,-418,-489,-462,-620,-593,-620,-607,-609,-537,-878,-878,-842,-837,-849,-822,-695,-617]} 1. e4 {[%emt 0:00:01]} d5 {[%emt 0:00:47]} 2. exd5 {[%emt 0:00:07]} Qxd5 {[%emt 0:00:02]} 3. Nc3 {[%emt 0:00:08]} Qd6 {[%emt 0:00:07]} 4. d4 {[%emt 0:00:25]} c6 {[%emt 0:00:08]} 5. Nf3 {[%emt 0:00:11]} Nf6 {[%emt 0:00:07]} 6. Ne5 {[%emt 0:00:04]} Nbd7 {[%emt 0:00:18] B01: Scandinavian Defence.} 7. Nc4 {[%emt 0:00:06]} Qc7 {[%emt 0:00:41]} 8. a4 {[%emt 0:00:32][%cal Ba2a4,Ba4a5][%mdl 32] Against b5} Nb6 {[%emt 0:05:23] White is slightly better.} 9. Ne5 {[%emt 0:02:02]} Bf5 {[%emt 0:03:56]} 10. a5 {[%emt 0:14:22]} Nbd5 {[%emt 0:01:38]} 11. Nxd5 {[%emt 0:00:08]} Nxd5 {[%emt 0:00:25]} 12. c3 {[%emt 0:00:08][%cal Oe5f7] [#]} a6 $146 {[%emt 0:02:25]} ({Predecessor:} 12... e6 13. Bc4 Bd6 14. Qe2 O-O 15. O-O Rfe8 16. Re1 a6 17. h3 c5 18. dxc5 Bxc5 {1-0 (39) Byron,A (2149)-Weinstein,S (2025) Caleta 2014}) 13. Nxf7 {[%emt 0:15:14]} Kxf7 $17 {[%emt 0:05:42]} 14. Qf3 {[%emt 0:00:06] [#]} e6 {[%emt 0:23:54]} (14... Ke6 $1 $17) 15. g4 $14 {[%emt 0:00:05][%mdl 1088] Pin. White has compensation.} Re8 {[%emt 0:06:19]} 16. Bc4 {[%emt 0:00:23]} g6 {[%emt 0:00:53][%cal Of7g7]} 17. Kf1 {[%emt 0:12:47]} Qd8 {[%emt 0:12:54]} 18. Bd2 {[%emt 0:18:38]} Kg7 {[%emt 0:07:57] And now ...Bc2 would win.} 19. gxf5 {[%emt 0:01:07]} exf5 {[%emt 0:00:02]} 20. Kg2 {[%emt 0:00:33]} Re4 {[%emt 0:06:30]} 21. h3 {[%emt 0:04:25]} (21. Rhe1 $11) 21... Bd6 $15 {[%emt 0:01:09]} 22. Kf1 {[%emt 0:05:52]} (22. Rhe1 $15) 22... Qh4 {[%emt 0:05:09]} (22... Rhe8 $17 23. Bd3 Rh4) 23. Bd3 {[%emt 0:01:49]} Re7 {[%emt 0:04:57]} 24. Re1 {[%emt 0:04:21]} Rhe8 {[%emt 0:00:30]} 25. Rxe7+ {[%emt 0:00:06]} Rxe7 {[%emt 0:00:02]} ({But not} 25... Qxe7 26. h4 $11) 26. Rg1 {[%emt 0:01:22]} Bf4 {[%emt 0:02:50] Inhibits Bg5.} 27. Be1 {[%emt 0:00:38] [#]} (27. Bxf4 $15 Nxf4 28. Bxf5) 27... Bh2 {[%emt 0:01:57]} (27... Qh6 $1 $19 {and Black stays clearly on top. ...Bd2 is the strong threat.} 28. Bc4 Bd6 29. Bxd5 cxd5) 28. Rg2 {[%emt 0:00:59]} (28. Rh1 $142 Bc7 29. Bd2) 28... Qf4 {[%emt 0:00:35] 0x0.00166f3bb619dp-1022s more active pieces.} (28... Bb8 $142 {Hoping for ...Qh6.} 29. Bd2 (29. Qxf5 $2 Nf4 $19) 29... Bf4 30. Bxf4 Nxf4) 29. Be2 $17 {[%emt 0:00:14]} Qxf3 {[%emt 0:00:12] Dancing on a razor blade.} 30. Bxf3 {[%emt 0:00:06]} Bc7 $36 {[%emt 0:00:04][%mdl 2048] White is under strong pressure.} 31. Bxd5 {[%emt 0:03:43]} cxd5 {[%emt 0:00:01][%mdl 4096] Endgame KRB-KRB} 32. b4 $1 {[%emt 0:00:17]} f4 {[%emt 0:05:31] Strongly threatening ...f3.} 33. f3 {[%emt 0:01:36]} Re3 {[%emt 0:00:16]} 34. Kf2 {[%emt 0:00:25][%mdl 8192]} (34. Rf2 $1 $15) 34... Bd8 $19 {[%emt 0:00:13] aiming for ...Bh4+.} 35. Rg4 {[%emt 0:00:32] Prevents Bh4+.} h5 {[%emt 0:00:13]} 36. Rxf4 {[%emt 0:01:23]} Re6 {[%emt 0:00:06]} 37. Bd2 {[%emt 0:03:16]} Bg5 {[%emt 0:00:54]} 38. h4 {[%emt 0:00:06]} Bh6 {[%emt 0:02:28] Black is clearly winning.} 39. Rf7+ {[%emt 0:00:21]} Kxf7 {[%emt 0:00:01]} 40. Bxh6 {[%emt 0:00:00] KR-KB} Ke8 {[%emt 0:00:00]} 41. Be3 {[%emt 0:00:31]} Kd7 {[%emt 0:00:55]} 42. Ke2 {[%emt 0:00:06]} Kc6 {[%emt 0:00:07]} 43. Kd3 {[%emt 0:00:06]} Rf6 {[%emt 0:00:04]} 44. Ke2 {[%emt 0:00:28]} Kb5 {[%emt 0:00:07]} 45. Bg5 {[%emt 0:00:04]} Rf8 {[%emt 0:00:05] Weighted Error Value: White=0.52/Black=0.16 (very precise)} 0-1

[Event "Arsen Yeghiazaryan Memorial 2022"]
[Site "Yerevan"]
[Date "2022.07.02"]
[Round "2.1"]
[White "Yeremyan, Alen"]
[Black "Alaverdyan, Gevorg"]
[Result "0-1"]
[ECO "A16"]
[WhiteElo "2233"]
[BlackElo "2336"]
[Annotator "TA"]
[PlyCount "152"]
[EventDate "2022.06.30"]
[EventType "tourn"]
[EventCountry "ARM"]
[SourceTitle "playchess.com"]
[Source "ChessBase"]
[SourceQuality "1"]
[TimeControl "40/5400+30:1800+30"]

{[%evp 10,152,38,35,35,41,33,0,0,1,14,0,0,-7,2,-7,-6,-7,-10,-21,-26,-76,-78,-78,-75,-67,-29,-97,-97,-97,-97,-97,-93,-97,-97,-97,-97,-97,-90,-90,-90,-97,-90,-90,-90,-97,-90,-97,-90,-90,-90,-90,-90,-90,-90,-90,-90,-90,-76,-76,-61,-90,-90,-90,-77,-90,-90,-90,-90,-100,-90,-100,-27,-100,-100,-100,-100,-100,-100,-100,-92,-100,-100,-100,-100,-100,-68,-86,-87,-100,-100,-100,0,-97,-100,-97,-100,-97,-68,-68,-68,-68,-68,-68,-68,-68,-68,-68,-68,-68,-64,-74,-66,-75,-68,-104,-99,-99,-103,-102,-93,-204,-208,-222,-216,-281,-272,-252,-197,-196,-176,-227,-227,-227,-227,-227,-235,-229,-222,-334,-352,-354,-319,-378,-358]} 1. c4 {[%emt 0:00:06]} Nf6 {[%emt 0:00:31]} 2. g3 {[%emt 0:00:09]} g6 {[%emt 0:00:13]} 3. Bg2 {[%emt 0:00:10]} Bg7 {[%emt 0:00:06]} 4. Nc3 {[%emt 0:00:26]} O-O {[%emt 0:00:13]} 5. d3 {[%emt 0:00:31]} c6 {[%emt 0:01:20]} 6. e4 {[%emt 0:02:25][%cal Be2e4,Be4d5][%mdl 32]} d5 {[%emt 0:03:24] A16: English Opening: 1...Nf6 with ...d5.} 7. cxd5 {[%emt 0:04:35]} cxd5 {[%emt 0:09:20]} 8. exd5 {[%emt 0:02:04]} (8. e5 $5 {[%cal Re5f6]} Ne8 9. d4 $11 (9. Bxd5 Bxe5 10. Nge2 Nc6 $15) (9. Nxd5 Nc6 $11)) 8... Na6 {[%emt 0:06:49] The position is equal.} 9. Nge2 {[%emt 0:02:51]} Bg4 {[%emt 0:03:15] [#]} 10. h3 $146 {[%emt 0:04:55]} ({Predecessor:} 10. O-O Nb4 11. Re1 Nfxd5 12. Nxd5 Nxd5 13. Qb3 Be6 14. Qa3 Qb6 15. Rb1 Rac8 16. Nf4 {0-1 (23) Jurasek,M (2272)-Kovar,V (2341) Czech Republic 2015}) 10... Bxe2 {[%emt 0:00:09]} 11. Qxe2 {[%emt 0:00:05]} Nb4 {[%emt 0:00:09][%cal Rf6d5]} 12. O-O {[%emt 0:00:59]} Nfxd5 {[%emt 0:01:58]} 13. Bg5 $1 {[%emt 0:14:41]} h6 {[%emt 0:03:54]} 14. Nxd5 {[%emt 0:00:56]} Nxd5 {[%emt 0:00:09]} 15. Qe4 {[%emt 0:10:15]} (15. Bd2 $11) 15... hxg5 $17 {[%emt 0:04:03]} 16. Qxd5 {[%emt 0:00:02]} Qxd5 {[%emt 0:00:29]} 17. Bxd5 {[%emt 0:00:02]} Rfd8 {[%emt 0:00:44]} (17... Bxb2 18. Rab1 Bd4 19. Rxb7 $11) 18. Bc4 {[%emt 0:03:03]} (18. Bxb7 $11 Rab8 19. Ba6) 18... Rab8 {[%emt 0:00:10]} ({But not} 18... Bxb2 $6 19. Rab1 Bd4 20. Rxb7 $11) 19. a4 {[%emt 0:03:47]} Bxb2 {[%emt 0:10:00]} 20. Rab1 {[%emt 0:00:01]} Bd4 {[%emt 0:00:19]} 21. Rb5 {[%emt 0:00:41]} Kg7 {[%emt 0:02:12]} 22. Kg2 {[%emt 0:01:30]} b6 {[%emt 0:03:54]} 23. Re1 {[%emt 0:03:13]} Kf6 {[%emt 0:08:11]} 24. Re4 {[%emt 0:03:24]} e6 {[%emt 0:01:58]} 25. Re1 {[%emt 0:00:29]} Bc5 {[%emt 0:00:35]} 26. Rb2 {[%emt 0:03:27]} Rbc8 {[%emt 0:00:48]} 27. Re4 {[%emt 0:05:23]} Rd6 {[%emt 0:08:07]} 28. Rb1 {[%emt 0:02:10]} Rd4 {[%emt 0:06:20]} 29. Re2 {[%emt 0:02:49]} Rh8 {[%emt 0:02:23]} 30. Ra1 {[%emt 0:03:43]} Rh5 {[%emt 0:01:06]} 31. Rf1 {[%emt 0:01:42]} Rd8 {[%emt 0:01:22]} 32. Re4 {[%emt 0:01:22]} Ke7 {[%emt 0:06:56]} 33. Rd1 {[%emt 0:01:41]} Rdh8 {[%emt 0:00:26]} 34. Rh1 {[%emt 0:02:48]} Bd6 {[%emt 0:00:18]} 35. Ree1 {[%emt 0:02:21]} Rc8 {[%emt 0:01:01]} 36. Rb1 {[%emt 0:00:46]} Rc5 {[%emt 0:00:23]} 37. Rb5 {[%emt 0:00:32]} Rh8 {[%emt 0:02:30]} 38. Rhb1 {[%emt 0:03:52]} Rhc8 {[%emt 0:02:46]} 39. Ra1 {[%emt 0:00:18]} Re5 {[%emt 0:02:20]} 40. Ra2 {[%emt 0:00:00]} Re1 {[%emt 0:00:00]} ({Better is} 40... Bc5 $17 41. Rb1 Rf5) 41. a5 {[%emt 0:09:26]} (41. Rxg5 $11 {remains equal.} Kf6 42. Rg4) 41... Bc5 {[%emt 0:01:53] aiming for ...a6.} 42. axb6 {[%emt 0:00:16]} axb6 {[%emt 0:00:39]} 43. Rbb2 {[%emt 0:02:06]} Bd4 {[%emt 0:01:42]} 44. Rb4 {[%emt 0:01:15][%cal Oc4e6]} Rd8 {[%emt 0:00:22]} 45. Bb5 {[%emt 0:05:55]} Kf6 {[%emt 0:00:16]} 46. Bc4 {[%emt 0:04:13]} Bc5 {[%emt 0:02:41]} 47. Rbb2 {[%emt 0:00:21]} Rd4 {[%emt 0:01:03] Black is more active.} 48. Ra8 {[%emt 0:01:12]} Rd7 {[%emt 0:00:19]} 49. Raa2 {[%emt 0:02:40]} Rc7 {[%emt 0:01:37]} 50. Rb3 {[%emt 0:00:45]} Rd7 {[%emt 0:10:04]} 51. Rbb2 $1 {[%emt 0:00:23]} Bd4 {[%emt 0:00:09]} 52. Rb4 {[%emt 0:00:30]} Rd6 {[%emt 0:00:08]} 53. Rb5 {[%emt 0:00:57]} Ra1 {[%emt 0:00:31]} 54. Rxa1 {[%emt 0:03:50]} Bxa1 $15 {[%emt 0:00:01][%mdl 4096] Endgame KRB-KRB} 55. Rb3 {[%emt 0:01:14]} Bd4 {[%emt 0:00:31]} 56. Ra3 {[%emt 0:02:15]} Rd8 {[%emt 0:00:53]} 57. Ra4 {[%emt 0:00:40]} Bc5 {[%emt 0:00:20]} 58. Ra2 {[%emt 0:01:19]} Rc8 {[%emt 0:03:14]} 59. Kf3 {[%emt 0:01:15]} Rc7 {[%emt 0:05:05]} 60. Ra8 {[%emt 0:00:35]} Ke5 {[%emt 0:00:53] White is on the road to losing.} 61. Ra4 {[%emt 0:00:49]} Bd4 {[%emt 0:00:34]} 62. Ra8 {[%emt 0:00:42]} Rc5 {[%emt 0:01:16]} 63. Rb8 {[%emt 0:02:02]} Ra5 {[%emt 0:00:08]} 64. Rb7 {[%emt 0:00:35]} Kf6 {[%emt 0:00:35]} 65. Rd7 {[%emt 0:01:37]} (65. g4 $17) 65... Rf5+ $19 {[%emt 0:00:10]} 66. Kg4 {[%emt 0:01:36]} Bxf2 {[%emt 0:00:37]} 67. d4 {[%emt 0:00:44]} Ra5 {[%emt 0:11:54] [#] Strongly threatening ...Ra3.} 68. Kf3 {[%emt 0:01:02]} Be1 {[%emt 0:00:03]} 69. d5 {[%emt 0:00:36]} Ra3+ {[%emt 0:00:19]} 70. Kg2 {[%emt 0:00:57]} (70. Ke2 $142 Rc3 71. Ba6 Bxg3 72. dxe6 Kxe6 73. Rd3 Rc2+ 74. Kd1) 70... Rxg3+ {[%emt 0:00:31]} 71. Kf1 {[%emt 0:00:07]} Rc3 {[%emt 0:01:03]} ({Not} 71... Rxh3 72. dxe6 fxe6 73. Kxe1 $11) 72. Be2 {[%emt 0:01:44]} Bg3 {[%emt 0:00:18]} ({Weaker is} 72... Rxh3 73. Kxe1 exd5 74. Rxd5 $11) 73. dxe6 {[%emt 0:00:14]} Kxe6 {[%emt 0:00:11]} 74. Rb7 {[%emt 0:00:05]} (74. Rd3 $142 Rc1+ 75. Rd1) 74... Bc7 {[%emt 0:00:03]} 75. Ra7 {[%emt 0:01:15]} f5 {[%emt 0:00:08]} 76. Ra8 {[%emt 0:00:08]} Rxh3 {[%emt 0:00:11] Weighted Error Value: White=0.08 (flawless) /Black=0.08 (flawless)} 0-1

[Event "Arsen Yeghiazaryan Memorial 2022"]
[Site "Yerevan"]
[Date "2022.07.02"]
[Round "2.2"]
[White "Atakhan, Abtin"]
[Black "Agasarov, Benik"]
[Result "1-0"]
[ECO "A14"]
[WhiteElo "2344"]
[BlackElo "2225"]
[Annotator "TA"]
[PlyCount "89"]
[EventDate "2022.06.30"]
[EventType "tourn"]
[EventCountry "ARM"]
[SourceTitle "playchess.com"]
[Source "ChessBase"]
[SourceQuality "1"]
[TimeControl "40/5400+30:1800+30"]

{[%evp 20,89,0,-11,0,0,0,0,0,-7,41,54,55,52,79,67,76,67,83,88,83,88,104,84,118,123,236,232,232,244,234,233,291,286,336,322,316,183,326,312,388,316,387,389,395,384,391,368,377,391,379,379,459,441,550,553,525,504,494,503,487,487,472,455,539,540,1002,1036,1632,1463,1337,1051]} 1. c4 {[%emt 0:00:30]} Nf6 {[%emt 0:00:13]} 2. Nf3 {[%emt 0:00:16]} e6 {[%emt 0:00:13]} 3. g3 {[%emt 0:00:28]} d5 {[%emt 0:00:07]} 4. Bg2 {[%emt 0:00:08]} Be7 {[%emt 0:00:07]} 5. O-O {[%emt 0:00:12]} O-O {[%emt 0:00:07]} 6. b3 {[%emt 0:00:42]} d4 {[%emt 0:00:34]} 7. e3 {[%emt 0:00:34]} c5 {[%emt 0:00:06]} 8. exd4 {[%emt 0:03:15]} cxd4 {[%emt 0:00:06]} 9. Bb2 {[%emt 0:00:05]} Nc6 {[%emt 0:00:06]} 10. Re1 {[%emt 0:00:05]} Re8 {[%emt 0:02:08]} 11. d3 {[%emt 0:02:57]} Bc5 {[%emt 0:01:14] A14: English Opening: 1...e6 with b3 by White.} 12. Ne5 {[%emt 0:02:07] 12.Ne5 scores better than 12.a3.} Nxe5 {[%emt 0:01:29]} 13. Rxe5 {[%emt 0:00:03]} Qd6 {[%emt 0:00:09] The position is equal. 13...Bd6 is vanishing.} 14. f4 {[%emt 0:13:44] [#]} Bd7 $146 {[%emt 0:24:04]} (14... Rd8 $11 {is more appropriate.}) ({Predecessor:} 14... a5 15. a4 Rb8 16. Na3 Bd7 17. Ra2 Qb6 18. Nb5 Bxb5 19. axb5 Nd7 20. Re4 Nf6 {1-0 (76) Repka,C (2508)-Yoo,C (2514) Saint Louis 2022}) 15. Bxb7 $14 {[%emt 0:10:26]} Rab8 {[%emt 0:00:10]} 16. Bf3 {[%emt 0:03:55]} Bc6 {[%emt 0:01:24]} 17. Nd2 {[%emt 0:01:02][%cal Bb1d2,Bd2e4,Be4g5,Bg5h3,Bh3f2,Bf2d3][%mdl 32]} Nd7 {[%emt 0:00:34]} 18. Re1 {[%emt 0:10:39]} e5 {[%emt 0:07:18]} 19. Bxc6 {[%emt 0:02:41]} Qxc6 {[%emt 0:00:06]} 20. Qf3 {[%emt 0:00:41]} Qc7 {[%emt 0:10:55]} 21. Ne4 $1 {[%emt 0:05:57]} Bb4 {[%emt 0:12:41] [#]} 22. Re2 {[%emt 0:00:10]} f5 {[%emt 0:05:24]} (22... Rbd8 $16) 23. Ng5 $18 {[%emt 0:08:22] White threatens Qd5+ and mate.} e4 {[%emt 0:00:16]} 24. dxe4 {[%emt 0:00:46]} (24. Qh5 $2 Nf6 25. Qh3 exd3 26. Rxe8+ Rxe8 27. Qxf5 d2 $19) 24... h6 {[%emt 0:00:05] [#]} 25. Nh3 {[%emt 0:00:22]} (25. Bxd4 hxg5 26. exf5 Rxe2 27. Qxe2 gxf4 $11) 25... Bc5 {[%emt 0:05:28] White must now prevent ...d3+.} 26. Nf2 {[%emt 0:01:45]} (26. exf5 $2 Rxe2 27. b4 d3+ 28. Kf1 Rxb2 $19) 26... fxe4 {[%emt 0:01:38]} 27. Rxe4 {[%emt 0:00:14]} Nf6 {[%emt 0:00:13]} 28. Ree1 {[%emt 0:06:04]} (28. Rxe8+ $142 Rxe8 29. Nd3) 28... a5 {[%emt 0:02:23]} (28... Rxe1+ $142 29. Rxe1 Qa5) 29. Nd3 {[%emt 0:04:03]} a4 {[%emt 0:00:17]} 30. Re5 {[%emt 0:00:58]} a3 {[%emt 0:00:38]} 31. Bc1 {[%emt 0:04:02]} (31. Nxc5 Rxe5 32. fxe5 axb2 $18) 31... Bd6 {[%emt 0:02:59]} 32. Rxe8+ {[%emt 0:00:14]} Rxe8 {[%emt 0:00:06]} 33. Bd2 {[%emt 0:00:12] Inhibits Qa5.} Qd7 {[%emt 0:01:01]} 34. Re1 {[%emt 0:00:52][%cal Ba1e1,Be1e6,Be6e5][%mdl 32] Prevents Ne4.} Rc8 {[%emt 0:00:22]} 35. f5 {[%emt 0:02:09]} Rf8 {[%emt 0:00:48]} 36. Re6 {[%emt 0:00:26] White is clearly winning.} Ne8 {[%emt 0:00:23] Threatens to win with ...Qxe6.} 37. Qd5 {[%emt 0:00:34] And now Re7+ would win.} Qf7 {[%emt 0:00:11] Inhibits Re7.} 38. Ne5 {[%emt 0:05:27]} Bxe5 {[%emt 0:00:08]} 39. Rxe5 {[%emt 0:00:17]} ({Weaker is} 39. Qxe5 Nf6 40. Qxd4 Qh5 $18) 39... Nf6 {[%emt 0:00:06]} 40. Qxf7+ {[%emt 0:00:00]} ({Don't play} 40. Qxd4 Qh5 41. Bc3 Ng4 $18) 40... Kxf7 {[%emt 0:00:00]} 41. Kf1 {[%emt 0:02:19]} Rb8 {[%emt 0:01:17]} 42. b4 {[%emt 0:02:22]} Re8 {[%emt 0:00:50]} 43. Rxe8 {[%emt 0:00:46]} Kxe8 {[%emt 0:00:08]} 44. Ke2 {[%emt 0:00:38]} Ng4 {[%emt 0:00:15]} 45. Kd3 {[%emt 0:00:28] White took control after the opening.  Weighted Error Value: White=0.07 (flawless) /Black=0.37} 1-0

[Event "Arsen Yeghiazaryan Memorial 2022"]
[Site "Yerevan"]
[Date "2022.07.02"]
[Round "2.3"]
[White "Yeritsyan, Hayk"]
[Black "Quparadze, Giga"]
[Result "0-1"]
[ECO "D85"]
[WhiteElo "2249"]
[BlackElo "2482"]
[Annotator "TA"]
[PlyCount "120"]
[EventDate "2022.06.30"]
[EventType "tourn"]
[EventCountry "ARM"]
[SourceTitle "playchess.com"]
[Source "ChessBase"]
[SourceQuality "1"]
[TimeControl "40/5400+30:1800+30"]

{[%evp 29,120,0,2,-33,-40,-40,-41,-77,-46,-76,-35,-119,-115,-114,-35,-85,-93,-106,-76,-95,-85,-77,-88,-112,-89,-80,-87,-84,-79,-316,-330,-330,-330,-316,-314,-314,-300,-318,-319,-318,-313,-302,-283,-245,-235,-597,-572,-406,-499,-1106,-1107,-899,-683,-664,-611,-29941,-29940,-29946,-29945,-29956,-29958,-29954,-29953,-29946,-10017,-29959,-29959,-29948,-29944,-12822,-6440,-6886,-6203,-5410,-3557,-2212,-1891,-5406,-2407,-29969,-29969,-29976,-29977,-29977,-29978,-29976,-29977,-29977,-29978,-29982,-29983,-29980,-29979]} 1. d4 Nf6 {[%emt 0:01:05]} 2. c4 {[%emt 0:00:05]} g6 {[%emt 0:00:06]} 3. Nc3 {[%emt 0:00:08]} d5 {[%emt 0:00:08]} 4. cxd5 {[%emt 0:00:05]} Nxd5 {[%emt 0:00:05]} 5. e4 {[%emt 0:00:04]} Nxc3 {[%emt 0:00:08]} 6. bxc3 {[%emt 0:00:03]} Bg7 {[%emt 0:00:10]} 7. Nf3 {[%emt 0:00:16]} c5 {[%emt 0:00:25]} 8. Rb1 {[%emt 0:01:01]} O-O {[%emt 0:00:52]} 9. Be2 {[%emt 0:00:04]} Nc6 {[%emt 0:00:12]} 10. d5 {[%emt 0:00:41]} Ne5 {[%emt 0:00:06]} 11. Nxe5 {[%emt 0:00:58]} Bxe5 {[%emt 0:00:09]} 12. Qd2 {[%emt 0:02:10]} e6 {[%emt 0:00:18]} 13. f4 {[%emt 0:00:37]} Bc7 {[%emt 0:00:08]} 14. O-O {[%emt 0:03:57]} exd5 {[%emt 0:00:14]} 15. exd5 {[%emt 0:01:05]} Ba5 $1 {[%emt 0:00:09]} 16. Bb2 {[%emt 0:01:31] D85: Exchange Grünfeld: Unusual White 7th moves and lines with 7 Nf3.} Bf5 {[%emt 0:01:48]} 17. Rbd1 {[%emt 0:00:41]} Qd6 {[%emt 0:01:03]} 18. g4 {[%emt 0:33:10] Black is slightly better.} Be4 {[%emt 0:06:13][%cal Oc5c4] [#]} 19. Bf3 $146 {[%emt 0:01:04]} ({Predecessor:} 19. Qe3 Bc2 20. c4 Rfe8 21. Qf2 Bxd1 22. Bxd1 f6 23. g5 f5 24. Ba1 Re4 25. Qb2 {0-1 (59) Spiess,G (2410)-Jansa,V (2490) Germany 1997}) 19... Rfe8 {[%emt 0:12:28]} (19... Rae8 {is interesting.} 20. f5 c4 21. Qh6 Bd8) 20. Kg2 {[%emt 0:13:21]} (20. Qe2 $1 $15 Bxf3 21. Qxf3) 20... c4 {[%emt 0:14:30]} (20... Re7 {seems wilder.} 21. Rfe1 Rae8 22. Bxe4 Rxe4 23. Kf3 Qe7) 21. Rfe1 {[%emt 0:04:48]} Bd3 {[%emt 0:02:58]} ({Black should try} 21... Bxf3+ $17 22. Kxf3 Rxe1 23. Rxe1 Rd8) 22. Rxe8+ {[%emt 0:04:52]} (22. Qc1 $15) 22... Rxe8 $17 {[%emt 0:00:09]} 23. Re1 {[%emt 0:00:02] Inhibits Qe7.} Re7 {[%emt 0:14:46]} (23... Rxe1 $6 24. Qxe1 Bc7 25. Bc1 $11) 24. Qc1 {[%emt 0:06:40]} Bb6 {[%emt 0:17:18] 0x0.000861dd465ddp-1022s more active pieces.} (24... Rxe1 $6 25. Qxe1 Bc7 26. Bc1 $11) 25. Rxe7 {[%emt 0:00:29]} Qxe7 {[%emt 0:00:02]} 26. Ba3 {[%emt 0:00:06]} Qh4 {[%emt 0:01:36]} 27. Qd2 {[%emt 0:00:05] Inhibits Qf2+.} f5 {[%emt 0:01:28]} 28. gxf5 {[%emt 0:07:06]} gxf5 $40 {[%emt 0:03:06][%mdl 128] Black goes for the king.} (28... Bxf5 $6 29. Kh1 $15) 29. d6 $2 {[%emt 0:05:05] This move loses the game for White.} ({Much worse is} 29. Kh1 Kf7 30. Bd6 Be4 31. Bxe4 fxe4) (29. h3 $17 {was forced.}) 29... Be4 $19 {[%emt 0:14:20]} 30. Bxe4 {[%emt 0:00:05]} Qg4+ {[%emt 0:00:15]} (30... fxe4 31. Qd5+ Kg7 32. Qe5+ Kh6 33. Qe6+ Kh5 34. Qe5+ Kh6 35. Qe6+ Kh5 36. Qe5+ Kh6 $11) 31. Kf1 {[%emt 0:00:03]} Qg1+ {[%emt 0:00:12]} ({Inferior is} 31... fxe4 32. Qd5+ (32. Qg2 Qxg2+ 33. Kxg2 Kf7 $17) 32... Kg7 33. Qxb7+ Kh6 34. Qxe4 $11) 32. Ke2 {[%emt 0:00:03] And now Qd5+ would win.} Qxh2+ {[%emt 0:00:20]} 33. Kd1 {[%emt 0:00:01] White wants to mate with Qd5+.} Qxd2+ {[%emt 0:00:13]} 34. Kxd2 {[%emt 0:00:02]} fxe4 {[%emt 0:00:09][%mdl 4096] Endgame KB-KB} 35. d7 {[%emt 0:01:35]} Kf7 {[%emt 0:00:09] Against Be7} 36. Bc5 {[%emt 0:01:00] [#] Intending Bxb6 and mate.} Bd8 {[%emt 0:02:59]} 37. Bxa7 $2 {[%emt 0:00:48]} (37. Ke3 {nothing else works.} b6 38. Bd4) 37... Ke6 {[%emt 0:00:34] Strongly threatening ...h5.} 38. Ke3 {[%emt 0:00:03] [#]} Kf5 {[%emt 0:03:05] aiming for ...h5.} 39. Kf2 {[%emt 0:09:58]} (39. Bd4 $142 h5 40. a4) 39... Kxf4 {[%emt 0:01:40]} 40. Be3+ {[%emt 0:00:04]} Kg4 {[%emt 0:00:52]} 41. Bh6 {[%emt 0:00:15]} Kf5 {[%emt 0:01:36]} 42. a4 {[%emt 0:03:22]} Kg6 {[%emt 0:09:12]} 43. Be3 {[%emt 0:18:24]} h5 {[%emt 0:00:10]} 44. Kg3 {[%emt 0:00:01]} Kf5 {[%emt 0:00:07]} 45. Bf2 Bc7+ {[%emt 0:04:25]} 46. Kh4 {[%emt 0:00:45]} Ke6 {[%emt 0:00:07]} 47. Kxh5 {[%emt 0:00:16]} Kxd7 {[%emt 0:00:09]} 48. Kg4 {[%emt 0:00:18]} Ke6 {[%emt 0:00:07]} 49. Be3 {[%emt 0:00:20]} Be5 {[%emt 0:03:08]} 50. Bd2 {[%emt 0:00:14]} Bg7 {[%emt 0:01:12] Hoping for ...Kd5.} 51. Kg3 {[%emt 0:03:10]} Kd5 {[%emt 0:01:07][%cal Oe4e3] ( -> ...e3!)} 52. Be1 {[%emt 0:04:13]} Bh6 {[%emt 0:00:27] ...Kc6 is the strong threat.} 53. Kg4 {[%emt 0:00:05]} Bc1 {[%emt 0:00:24] White must now prevent ...Kc6.} 54. Kg3 {[%emt 0:00:26]} Kc5 {[%emt 0:02:01] Black mates.} 55. Bf2+ {[%emt 0:02:05]} e3 {[%emt 0:00:21]} 56. Bg1 {[%emt 0:00:04]} Kb6 {[%emt 0:00:21]} 57. Kf3 {[%emt 0:00:29]} Ka5 {[%emt 0:00:06]} 58. Ke2 {[%emt 0:00:36]} Kxa4 {[%emt 0:00:07]} 59. Kd1 {[%emt 0:00:03]} Bd2 {[%emt 0:00:11]} 60. Kc2 {[%emt 0:00:06]} b5 {[%emt 0:00:29] Weighted Error Value: White=0.70/Black=0.27 (precise)} 0-1